[Event "Titled Tuesday Blitz May 10 Late 2022"]
[White "Ibarra Jerez, Jose Carlos"]
[Black "Jobava, Baadur"]
[WhiteFideId "2226332"]
[BlackFideId "13601520"]
[WhiteElo "2626"]
[BlackElo "2617"]
[Result "1-0"]
[Round "04"]
[TimeControl "180+1"]
[Date "2022.05.10"]
[WhiteClock "0:00:07"]
[BlackClock "0:00:38"]

1. e4 {[%clk 0:03:00]}  c6 {[%clk 0:02:59]} 2. Nf3 {[%clk 0:02:59]}  d5 {[%clk 0:03:00]} 3. d3 {[%clk 0:02:59]}  Bg4 {[%clk 0:02:57]} 4. h3 {[%clk 0:02:51]}  Bh5 {[%clk 0:02:58]} 5. Qe2 {[%clk 0:02:45]}  dxe4 {[%clk 0:02:51]} 6. dxe4 {[%clk 0:02:44]}  e5 {[%clk 0:02:48]} 7. Nc3 {[%clk 0:02:33]}  Nd7 {[%clk 0:02:48]} 8. g4 {[%clk 0:02:29]}  Bg6 {[%clk 0:02:48]} 9. Bd2 {[%clk 0:02:20]}  Qc7 {[%clk 0:02:44]} 10. h4 {[%clk 0:02:20]}  f6 {[%clk 0:02:43]} 11. h5 {[%clk 0:02:14]}  Bf7 {[%clk 0:02:43]} 12. g5 {[%clk 0:02:15]}  O-O-O {[%clk 0:02:42]} 13. O-O-O {[%clk 0:02:12]}  Kb8 {[%clk 0:02:41]} 14. h6 {[%clk 0:01:54]}  gxh6 {[%clk 0:02:42]} 15. gxh6 {[%clk 0:01:50]}  Ne7 {[%clk 0:02:35]} 16. Bh3 {[%clk 0:01:42]}  Ng6 {[%clk 0:02:34]} 17. Kb1 {[%clk 0:01:38]}  Bc5 {[%clk 0:02:26]} 18. a3 {[%clk 0:01:25]}  Nb6 {[%clk 0:02:25]} 19. Be3 {[%clk 0:01:18]}  Nf4 {[%clk 0:02:13]} 20. Bxf4 {[%clk 0:01:12]}  exf4 {[%clk 0:02:14]} 21. Rxd8+ {[%clk 0:01:06]}  Rxd8 {[%clk 0:02:13]} 22. Rd1 {[%clk 0:01:07]}  Nc4 {[%clk 0:02:12]} 23. Rxd8+ {[%clk 0:00:52]}  Qxd8 {[%clk 0:02:13]} 24. e5 {[%clk 0:00:46]}  b5 {[%clk 0:01:43]} 25. Ne4 {[%clk 0:00:35]}  Bh5 {[%clk 0:01:35]} 26. exf6 {[%clk 0:00:28]}  Bd4 {[%clk 0:01:20]} 27. f7 {[%clk 0:00:18]}  Bxb2 {[%clk 0:01:11]} 28. Nc5 {[%clk 0:00:13]}  Bxa3 {[%clk 0:01:08]} 29. Qd3 {[%clk 0:00:04]}  Qh8 {[%clk 0:00:43]} 30. f8=Q+ {[%clk 0:00:04]}  Qxf8 {[%clk 0:00:43]} 31. Nd7+ {[%clk 0:00:05]}  Kb7 {[%clk 0:00:39]} 32. Nxf8 {[%clk 0:00:06]}  Bxf3 {[%clk 0:00:37]} 33. Qxh7+ {[%clk 0:00:05]}  Ka6 {[%clk 0:00:35]} 34. Qd3 {[%clk 0:00:05]}  Bd5 {[%clk 0:00:35]} 35. h7 {[%clk 0:00:05]}  Bb2 {[%clk 0:00:34]} 36. c3 {[%clk 0:00:04]}  b4 {[%clk 0:00:34]} 37. h8=Q {[%clk 0:00:04]}  Bxc3 {[%clk 0:00:35]} 38. Qhxc3 {[%clk 0:00:04]}  bxc3 {[%clk 0:00:36]} 39. Qxc3 {[%clk 0:00:04]}  Kb5 {[%clk 0:00:37]} 40. Nd7 {[%clk 0:00:04]}  a5 {[%clk 0:00:37]} 41. Ne5 {[%clk 0:00:05]}  Nd6 {[%clk 0:00:36]} 42. Bf1+ {[%clk 0:00:05]}  Kb6 {[%clk 0:00:37]} 43. Nd7+ {[%clk 0:00:05]}  Kc7 {[%clk 0:00:37]} 44. Nc5 {[%clk 0:00:06]}  Kb6 {[%clk 0:00:36]} 45. Na4+ {[%clk 0:00:06]}  Kc7 {[%clk 0:00:36]} 46. Qxa5+ {[%clk 0:00:06]}  Kd7 {[%clk 0:00:37]} 47. Nb6+ {[%clk 0:00:07]}  Ke6 {[%clk 0:00:37]} 48. Nxd5 {[%clk 0:00:07]}  cxd5 {[%clk 0:00:38]} 49. Bh3+ {[%clk 0:00:07]} 1-0


[Site "https://www.chess.com"]

[Event "Titled Tuesday Blitz May 10 Late 2022"]
[White "Janaszak, Dawid"]
[Black "Derraugh, Geordie"]
[WhiteFideId "1119206"]
[BlackFideId "2603950"]
[WhiteElo "2682"]
[BlackElo "2495"]
[Result "0-1"]
[Round "04"]
[TimeControl "180+1"]
[Date "2022.05.11"]
[WhiteClock "0:00:12"]
[BlackClock "0:00:17"]

1. e4 {[%clk 0:03:00]}  c5 {[%clk 0:02:59]} 2. Nc3 {[%clk 0:03:00]}  g6 {[%clk 0:02:57]} 3. Bc4 {[%clk 0:02:58]}  Bg7 {[%clk 0:02:57]} 4. h4 {[%clk 0:02:58]}  h5 {[%clk 0:02:56]} 5. Qf3 {[%clk 0:02:58]}  e6 {[%clk 0:02:56]} 6. d4 {[%clk 0:02:58]}  cxd4 {[%clk 0:02:50]} 7. Nb5 {[%clk 0:02:58]}  d6 {[%clk 0:02:49]} 8. Bf4 {[%clk 0:02:58]}  Be5 {[%clk 0:02:46]} 9. Bxe5 {[%clk 0:02:57]}  dxe5 {[%clk 0:02:47]} 10. Qa3 {[%clk 0:02:58]}  Qd7 {[%clk 0:02:05]} 11. Nd6+ {[%clk 0:02:50]}  Kd8 {[%clk 0:02:06]} 12. Nf3 {[%clk 0:02:25]}  Nc6 {[%clk 0:02:01]} 13. Ng5 {[%clk 0:01:11]}  Nh6 {[%clk 0:01:31]} 14. O-O-O {[%clk 0:01:10]}  Kc7 {[%clk 0:01:19]} 15. Nb5+ {[%clk 0:01:04]}  Kb8 {[%clk 0:01:19]} 16. c3 {[%clk 0:00:49]}  a6 {[%clk 0:01:19]} 17. Nd6 {[%clk 0:00:49]}  Qc7 {[%clk 0:00:49]} 18. cxd4 {[%clk 0:00:38]}  exd4 {[%clk 0:00:45]} 19. e5 {[%clk 0:00:29]}  Nxe5 {[%clk 0:00:39]} 20. Rxd4 {[%clk 0:00:26]}  Rd8 {[%clk 0:00:39]} 21. Nxc8 {[%clk 0:00:17]}  Rxd4 {[%clk 0:00:35]} 22. Kb1 {[%clk 0:00:16]}  Nxc4 {[%clk 0:00:33]} 23. Qc3 {[%clk 0:00:14]}  Nd2+ {[%clk 0:00:25]} 24. Kc2 {[%clk 0:00:13]}  Qxc3+ {[%clk 0:00:25]} 25. Kxc3 {[%clk 0:00:13]}  Rc4+ {[%clk 0:00:16]} 26. Kxd2 {[%clk 0:00:13]}  Rxc8 {[%clk 0:00:17]} 27. Ke3 {[%clk 0:00:11]}  Ka7 {[%clk 0:00:17]} 28. Rg1 {[%clk 0:00:11]}  Rc7 {[%clk 0:00:17]} 29. Ke4 {[%clk 0:00:12]}  Nf5 {[%clk 0:00:17]} 30. Ke5 {[%clk 0:00:12]}  Nxh4 {[%clk 0:00:17]} 0-1


[Site "https://www.chess.com"]

[Event "Titled Tuesday Blitz May 10 Late 2022"]
[White "Jeet, Jain"]
[Black "Joubert, Dantelle"]
[WhiteFideId "5073022"]
[BlackFideId "14310813"]
[WhiteElo "2028"]
[BlackElo "1507"]
[Result "1-0"]
[Round "04"]
[TimeControl "180+1"]
[Date "2022.05.11"]
[WhiteClock "0:00:24"]
[BlackClock "0:00:02"]

1. c4 {[%clk 0:03:00]}  e6 {[%clk 0:02:59]} 2. Nc3 {[%clk 0:02:59]}  d5 {[%clk 0:02:59]} 3. d4 {[%clk 0:02:53]}  Nf6 {[%clk 0:02:59]} 4. g3 {[%clk 0:02:52]}  Be7 {[%clk 0:02:58]} 5. Bg2 {[%clk 0:02:52]}  O-O {[%clk 0:02:58]} 6. Nf3 {[%clk 0:02:52]}  dxc4 {[%clk 0:02:58]} 7. Ne5 {[%clk 0:02:51]}  c5 {[%clk 0:02:58]} 8. e3 {[%clk 0:02:43]}  cxd4 {[%clk 0:02:57]} 9. exd4 {[%clk 0:02:44]}  Nc6 {[%clk 0:02:56]} 10. Nxc6 {[%clk 0:02:41]}  bxc6 {[%clk 0:02:57]} 11. Bxc6 {[%clk 0:02:41]}  Rb8 {[%clk 0:02:56]} 12. O-O {[%clk 0:02:37]}  Nd5 {[%clk 0:02:42]} 13. Qf3 {[%clk 0:02:23]}  Nb4 {[%clk 0:02:37]} 14. Be4 {[%clk 0:02:17]}  f5 {[%clk 0:02:35]} 15. Bb1 {[%clk 0:02:12]}  Qxd4 {[%clk 0:02:26]} 16. Be3 {[%clk 0:02:11]}  Qf6 {[%clk 0:02:08]} 17. Qf4 {[%clk 0:01:56]}  e5 {[%clk 0:01:43]} 18. Qxc4+ {[%clk 0:01:55]}  Be6 {[%clk 0:01:43]} 19. Qe2 {[%clk 0:01:46]}  f4 {[%clk 0:01:42]} 20. Bxa7 {[%clk 0:01:45]}  Rb7 {[%clk 0:01:31]} 21. Bxh7+ {[%clk 0:01:43]}  Kh8 {[%clk 0:00:56]} 22. Qh5 {[%clk 0:01:31]}  Qh6 {[%clk 0:00:55]} 23. Qxh6 {[%clk 0:01:31]}  gxh6 {[%clk 0:00:55]} 24. Be4 {[%clk 0:01:32]}  Rxa7 {[%clk 0:00:54]} 25. a3 {[%clk 0:01:33]}  Na6 {[%clk 0:00:50]} 26. b4 {[%clk 0:01:32]}  fxg3 {[%clk 0:00:38]} 27. hxg3 {[%clk 0:01:27]}  Nc7 {[%clk 0:00:35]} 28. Kg2 {[%clk 0:01:24]}  Bf5 {[%clk 0:00:28]} 29. Bf3 {[%clk 0:01:19]}  Ne6 {[%clk 0:00:27]} 30. Nb5 {[%clk 0:01:14]}  Rd7 {[%clk 0:00:23]} 31. Rfe1 {[%clk 0:01:09]}  Bf6 {[%clk 0:00:23]} 32. Rac1 {[%clk 0:01:02]}  Nd4 {[%clk 0:00:22]} 33. Bc6 {[%clk 0:01:00]}  Nxc6 {[%clk 0:00:20]} 34. Rxc6 {[%clk 0:01:01]}  e4 {[%clk 0:00:20]} 35. Nd6 {[%clk 0:00:58]}  Bh7 {[%clk 0:00:14]} 36. Nxe4 {[%clk 0:00:58]}  Re8 {[%clk 0:00:14]} 37. Nxf6 {[%clk 0:00:57]}  Rxe1 {[%clk 0:00:13]} 38. Rc8+ {[%clk 0:00:57]}  Kg7 {[%clk 0:00:13]} 39. Nxd7 {[%clk 0:00:57]}  Bf5 {[%clk 0:00:12]} 40. Rc7 {[%clk 0:00:41]}  Re7 {[%clk 0:00:11]} 41. a4 {[%clk 0:00:39]}  Bxd7 {[%clk 0:00:10]} 42. Kh2 {[%clk 0:00:32]}  Kf6 {[%clk 0:00:08]} 43. a5 {[%clk 0:00:32]}  Bb5 {[%clk 0:00:04]} 44. Rc5 {[%clk 0:00:31]}  Rb7 {[%clk 0:00:02]} 45. Rd5 {[%clk 0:00:23]}  Ke6 {[%clk 0:00:02]} 46. Rd4 {[%clk 0:00:24]}  Ke5 {[%clk 0:00:02]} 47. Rh4 {[%clk 0:00:24]} 1-0


[Site "https://www.chess.com"]

[Event "Titled Tuesday Blitz May 10 Late 2022"]
[White "Jegorovas, Aleksandras"]
[Black "Szabo, Marton Mihaly"]
[WhiteFideId "12801950"]
[BlackFideId "787086"]
[WhiteElo "2529"]
[BlackElo "2687"]
[Result "0-1"]
[Round "04"]
[TimeControl "180+1"]
[Date "2022.05.11"]
[WhiteClock "0:00:01"]
[BlackClock "0:00:08"]

1. Nf3 {[%clk 0:02:50]}  c5 {[%clk 0:02:59]} 2. c4 {[%clk 0:02:49]}  Nc6 {[%clk 0:03:00]} 3. Nc3 {[%clk 0:02:50]}  Nf6 {[%clk 0:02:59]} 4. e3 {[%clk 0:02:49]}  g6 {[%clk 0:02:59]} 5. d4 {[%clk 0:02:46]}  cxd4 {[%clk 0:03:00]} 6. exd4 {[%clk 0:02:46]}  d5 {[%clk 0:03:00]} 7. cxd5 {[%clk 0:02:46]}  Nxd5 {[%clk 0:03:01]} 8. Qb3 {[%clk 0:02:46]}  e6 {[%clk 0:03:01]} 9. Bb5 {[%clk 0:02:43]}  Bg7 {[%clk 0:03:01]} 10. O-O {[%clk 0:02:43]}  O-O {[%clk 0:03:01]} 11. Bxc6 {[%clk 0:02:43]}  bxc6 {[%clk 0:03:02]} 12. Re1 {[%clk 0:02:40]}  Ba6 {[%clk 0:02:56]} 13. Ne4 {[%clk 0:02:37]}  Nb6 {[%clk 0:02:55]} 14. Bg5 {[%clk 0:02:30]}  Qd5 {[%clk 0:02:39]} 15. Qc2 {[%clk 0:02:18]}  Nd7 {[%clk 0:02:12]} 16. b3 {[%clk 0:01:42]}  c5 {[%clk 0:02:01]} 17. Nxc5 {[%clk 0:00:42]}  Nxc5 {[%clk 0:01:58]} 18. dxc5 {[%clk 0:00:42]}  Bxa1 {[%clk 0:01:57]} 19. Rxa1 {[%clk 0:00:42]}  f6 {[%clk 0:01:51]} 20. Be3 {[%clk 0:00:40]}  e5 {[%clk 0:01:51]} 21. Rd1 {[%clk 0:00:37]}  Qf7 {[%clk 0:01:44]} 22. c6 {[%clk 0:00:35]}  Rac8 {[%clk 0:01:38]} 23. Qe4 {[%clk 0:00:16]}  Be2 {[%clk 0:01:29]} 24. Rc1 {[%clk 0:00:15]}  Bxf3 {[%clk 0:01:29]} 25. gxf3 {[%clk 0:00:14]}  Rfd8 {[%clk 0:00:49]} 26. Qa4 {[%clk 0:00:13]}  Rc7 {[%clk 0:00:44]} 27. b4 {[%clk 0:00:10]}  Qd5 {[%clk 0:00:36]} 28. b5 {[%clk 0:00:09]}  Rb8 {[%clk 0:00:17]} 29. Bxa7 {[%clk 0:00:04]}  Rxb5 {[%clk 0:00:09]} 30. Be3 {[%clk 0:00:01]}  Kf7 {[%clk 0:00:08]} 0-1


[Site "https://www.chess.com"]

[Event "Titled Tuesday Blitz May 10 Late 2022"]
[White "Jones, Gawain C B"]
[Black "Andreikin, Dmitry"]
[WhiteFideId "409561"]
[BlackFideId "4158814"]
[WhiteElo "2657"]
[BlackElo "2736"]
[Result "0-1"]
[Round "04"]
[TimeControl "180+1"]
[Date "2022.05.10"]
[WhiteClock "0:00:29"]
[BlackClock "0:01:06"]

1. Nf3 {[%clk 0:03:00]}  b5 {[%clk 0:02:58]} 2. e4 {[%clk 0:03:00]}  Bb7 {[%clk 0:02:58]} 3. Bxb5 {[%clk 0:03:00]}  Bxe4 {[%clk 0:02:58]} 4. Nc3 {[%clk 0:03:01]}  Bxf3 {[%clk 0:02:56]} 5. Qxf3 {[%clk 0:03:01]}  c6 {[%clk 0:02:57]} 6. Bc4 {[%clk 0:03:00]}  e6 {[%clk 0:02:56]} 7. d4 {[%clk 0:02:59]}  d5 {[%clk 0:02:55]} 8. Bd3 {[%clk 0:02:59]}  Nf6 {[%clk 0:02:55]} 9. O-O {[%clk 0:02:58]}  Bd6 {[%clk 0:02:54]} 10. Bg5 {[%clk 0:02:57]}  Nbd7 {[%clk 0:02:53]} 11. Ne2 {[%clk 0:02:54]}  Qb8 {[%clk 0:02:50]} 12. Kh1 {[%clk 0:02:43]}  Qxb2 {[%clk 0:02:46]} 13. c4 {[%clk 0:02:39]}  Qa3 {[%clk 0:02:29]} 14. Rfc1 {[%clk 0:02:24]}  Rb8 {[%clk 0:02:11]} 15. Ng3 {[%clk 0:02:08]}  h6 {[%clk 0:02:04]} 16. Bxf6 {[%clk 0:01:57]}  Nxf6 {[%clk 0:02:05]} 17. c5 {[%clk 0:01:58]}  Bc7 {[%clk 0:01:48]} 18. Bb5 {[%clk 0:01:57]}  Qxf3 {[%clk 0:01:44]} 19. Bxc6+ {[%clk 0:01:57]}  Ke7 {[%clk 0:01:42]} 20. gxf3 {[%clk 0:01:58]}  Rb4 {[%clk 0:01:42]} 21. Ne2 {[%clk 0:01:48]}  Rhb8 {[%clk 0:01:41]} 22. Rc2 {[%clk 0:01:38]}  g5 {[%clk 0:01:40]} 23. Kg2 {[%clk 0:01:36]}  Nh5 {[%clk 0:01:40]} 24. a3 {[%clk 0:01:34]}  Rb2 {[%clk 0:01:36]} 25. Ra2 {[%clk 0:01:22]}  Rb1 {[%clk 0:01:32]} 26. Ba4 {[%clk 0:01:18]}  Ng7 {[%clk 0:01:31]} 27. Ng3 {[%clk 0:01:00]}  h5 {[%clk 0:01:31]} 28. Rc3 {[%clk 0:00:42]}  h4 {[%clk 0:01:30]} 29. Ne2 {[%clk 0:00:43]}  h3+ {[%clk 0:01:28]} 30. Kxh3 {[%clk 0:00:42]}  Rh8+ {[%clk 0:01:27]} 31. Kg4 {[%clk 0:00:41]}  Rxh2 {[%clk 0:01:16]} 32. f4 {[%clk 0:00:35]}  f5+ {[%clk 0:01:10]} 33. Kxg5 {[%clk 0:00:33]}  Kf7 {[%clk 0:01:07]} 34. Ng3 {[%clk 0:00:29]}  Bd8# {[%clk 0:01:06]} 0-1


[Site "https://www.chess.com"]

[Event "Titled Tuesday Blitz May 10 Late 2022"]
[White "Kanyamarala, Trisha"]
[Black "Lehtosaari, Mauri"]
[WhiteFideId "45004722"]
[BlackFideId "501999"]
[WhiteElo "2134"]
[BlackElo "2511"]
[Result "1/2-1/2"]
[Round "04"]
[TimeControl "180+1"]
[Date "2022.05.11"]
[WhiteClock "0:00:03"]
[BlackClock "0:00:10"]

1. Nf3 {[%clk 0:02:58]}  d5 {[%clk 0:03:00]} 2. c4 {[%clk 0:02:58]}  c6 {[%clk 0:02:59]} 3. e3 {[%clk 0:02:57]}  Nf6 {[%clk 0:03:00]} 4. Nc3 {[%clk 0:02:58]}  a6 {[%clk 0:02:59]} 5. b3 {[%clk 0:02:56]}  Bg4 {[%clk 0:02:58]} 6. Bb2 {[%clk 0:02:56]}  e6 {[%clk 0:02:58]} 7. Be2 {[%clk 0:02:55]}  Nbd7 {[%clk 0:02:58]} 8. d4 {[%clk 0:02:53]}  Bd6 {[%clk 0:02:58]} 9. O-O {[%clk 0:02:53]}  O-O {[%clk 0:02:58]} 10. Qc2 {[%clk 0:02:43]}  b5 {[%clk 0:02:56]} 11. e4 {[%clk 0:02:34]}  b4 {[%clk 0:02:54]} 12. e5 {[%clk 0:02:27]}  bxc3 {[%clk 0:02:47]} 13. Bxc3 {[%clk 0:02:27]}  Be7 {[%clk 0:02:37]} 14. exf6 {[%clk 0:02:25]}  Bxf6 {[%clk 0:02:32]} 15. h3 {[%clk 0:02:21]}  Bf5 {[%clk 0:02:26]} 16. Qd2 {[%clk 0:02:18]}  h6 {[%clk 0:02:16]} 17. Rac1 {[%clk 0:02:16]}  Qb6 {[%clk 0:02:08]} 18. Ba5 {[%clk 0:02:14]}  Qb7 {[%clk 0:02:07]} 19. cxd5 {[%clk 0:02:13]}  exd5 {[%clk 0:02:03]} 20. Bd3 {[%clk 0:02:02]}  Bxd3 {[%clk 0:01:59]} 21. Qxd3 {[%clk 0:02:03]}  Rfe8 {[%clk 0:01:56]} 22. Rc2 {[%clk 0:02:00]}  Nf8 {[%clk 0:01:54]} 23. Rfc1 {[%clk 0:01:58]}  Rac8 {[%clk 0:01:54]} 24. b4 {[%clk 0:01:45]}  Ne6 {[%clk 0:01:47]} 25. g3 {[%clk 0:01:36]}  g6 {[%clk 0:01:30]} 26. Rc3 {[%clk 0:01:34]}  Ng7 {[%clk 0:01:30]} 27. Qc2 {[%clk 0:01:31]}  Re6 {[%clk 0:01:24]} 28. a4 {[%clk 0:01:30]}  Ne8 {[%clk 0:01:21]} 29. Rb1 {[%clk 0:01:22]}  Nd6 {[%clk 0:01:20]} 30. Qd3 {[%clk 0:00:33]}  Rce8 {[%clk 0:00:40]} 31. Rbc1 {[%clk 0:00:29]}  Nc4 {[%clk 0:00:40]} 32. Nd2 {[%clk 0:00:27]}  Nxd2 {[%clk 0:00:28]} 33. Qxd2 {[%clk 0:00:27]}  Re4 {[%clk 0:00:28]} 34. Rxc6 {[%clk 0:00:22]}  Bxd4 {[%clk 0:00:24]} 35. Rc7 {[%clk 0:00:13]}  Qb8 {[%clk 0:00:25]} 36. Qxh6 {[%clk 0:00:08]}  Bb6 {[%clk 0:00:21]} 37. Bxb6 {[%clk 0:00:08]}  Qxb6 {[%clk 0:00:22]} 38. R1c2 {[%clk 0:00:05]}  Re1+ {[%clk 0:00:21]} 39. Kg2 {[%clk 0:00:05]}  Qe6 {[%clk 0:00:21]} 40. Qf4 {[%clk 0:00:05]}  Qe4+ {[%clk 0:00:21]} 41. Qxe4 {[%clk 0:00:05]}  R1xe4 {[%clk 0:00:22]} 42. Ra7 {[%clk 0:00:05]}  R8e6 {[%clk 0:00:20]} 43. Rcc7 {[%clk 0:00:05]}  Rf6 {[%clk 0:00:20]} 44. b5 {[%clk 0:00:03]}  axb5 {[%clk 0:00:21]} 45. axb5 {[%clk 0:00:04]}  Rb4 {[%clk 0:00:21]} 46. Ra6 {[%clk 0:00:03]}  Rxa6 {[%clk 0:00:19]} 47. bxa6 {[%clk 0:00:04]}  Ra4 {[%clk 0:00:20]} 48. a7 {[%clk 0:00:04]}  Kg7 {[%clk 0:00:20]} 49. Rd7 {[%clk 0:00:04]}  Kf6 {[%clk 0:00:19]} 50. Rxd5 {[%clk 0:00:04]}  Rxa7 {[%clk 0:00:19]} 51. Rb5 {[%clk 0:00:05]}  Ra3 {[%clk 0:00:19]} 52. g4 {[%clk 0:00:03]}  Kg7 {[%clk 0:00:19]} 53. f3 {[%clk 0:00:04]}  Ra2+ {[%clk 0:00:19]} 54. Kg3 {[%clk 0:00:04]}  Ra1 {[%clk 0:00:20]} 55. h4 {[%clk 0:00:04]}  Rg1+ {[%clk 0:00:20]} 56. Kf4 {[%clk 0:00:04]}  Ra1 {[%clk 0:00:21]} 57. Kg3 {[%clk 0:00:04]}  Rg1+ {[%clk 0:00:20]} 58. Kh2 {[%clk 0:00:04]}  Ra1 {[%clk 0:00:21]} 59. Rc5 {[%clk 0:00:04]}  Ra3 {[%clk 0:00:21]} 60. Kg3 {[%clk 0:00:03]}  Ra1 {[%clk 0:00:22]} 61. Re5 {[%clk 0:00:03]}  Rg1+ {[%clk 0:00:22]} 62. Kh3 {[%clk 0:00:03]}  Ra1 {[%clk 0:00:23]} 63. Re2 {[%clk 0:00:03]}  Ra3 {[%clk 0:00:23]} 64. Kg3 {[%clk 0:00:02]}  Rb3 {[%clk 0:00:23]} 65. Rd2 {[%clk 0:00:03]}  Ra3 {[%clk 0:00:23]} 66. Rh2 {[%clk 0:00:03]}  Rb3 {[%clk 0:00:23]} 67. h5 {[%clk 0:00:03]}  gxh5 {[%clk 0:00:21]} 68. Rxh5 {[%clk 0:00:03]}  Kg6 {[%clk 0:00:19]} 69. Rc5 {[%clk 0:00:03]}  f6 {[%clk 0:00:18]} 70. Rc6 {[%clk 0:00:03]}  Ra3 {[%clk 0:00:18]} 71. Rc5 {[%clk 0:00:03]}  Rb3 {[%clk 0:00:17]} 72. Rc4 {[%clk 0:00:03]}  Rb1 {[%clk 0:00:16]} 73. Kf4 {[%clk 0:00:03]}  Rb6 {[%clk 0:00:16]} 74. Rd4 {[%clk 0:00:03]}  Ra6 {[%clk 0:00:16]} 75. Rc4 {[%clk 0:00:03]}  Rb6 {[%clk 0:00:16]} 76. Kg3 {[%clk 0:00:03]}  Rd6 {[%clk 0:00:16]} 77. Rc3 {[%clk 0:00:03]}  Rd4 {[%clk 0:00:16]} 78. f4 {[%clk 0:00:04]}  Rd7 {[%clk 0:00:15]} 79. Re3 {[%clk 0:00:04]}  Kf7 {[%clk 0:00:15]} 80. Kf3 {[%clk 0:00:04]}  Ra7 {[%clk 0:00:15]} 81. Rc3 {[%clk 0:00:04]}  Rb7 {[%clk 0:00:15]} 82. Ke4 {[%clk 0:00:04]}  Rb4+ {[%clk 0:00:15]} 83. Kf3 {[%clk 0:00:05]}  Rb7 {[%clk 0:00:15]} 84. Kg3 {[%clk 0:00:03]}  Kg6 {[%clk 0:00:13]} 85. Rf3 {[%clk 0:00:03]}  Ra7 {[%clk 0:00:13]} 86. Re3 {[%clk 0:00:03]}  Rb7 {[%clk 0:00:13]} 87. Re8 {[%clk 0:00:03]}  Kf7 {[%clk 0:00:11]} 88. Rd8 {[%clk 0:00:03]}  Kg6 {[%clk 0:00:10]} 89. Rd3 {[%clk 0:00:03]}  Ra7 {[%clk 0:00:09]} 90. Kf3 {[%clk 0:00:03]}  Re7 {[%clk 0:00:09]} 91. Kg3 {[%clk 0:00:03]}  Ra7 {[%clk 0:00:09]} 92. Rf3 {[%clk 0:00:02]}  Rb7 {[%clk 0:00:09]} 93. Kh4 {[%clk 0:00:02]}  Rh7+ {[%clk 0:00:09]} 94. Kg3 {[%clk 0:00:03]}  Ra7 {[%clk 0:00:10]} 95. Re3 {[%clk 0:00:03]}  Rb7 {[%clk 0:00:10]} 96. Rd3 {[%clk 0:00:03]}  Ra7 {[%clk 0:00:10]} 1/2-1/2


[Site "https://www.chess.com"]

[Event "Titled Tuesday Blitz May 10 Late 2022"]
[White "Karas, Marek"]
[Black "Zivkovic, Nemanja"]
[WhiteFideId "14928558"]
[BlackFideId "942154"]
[WhiteElo "2397"]
[BlackElo "2539"]
[Result "1-0"]
[Round "04"]
[TimeControl "180+1"]
[Date "2022.05.11"]
[WhiteClock "0:00:19"]
[BlackClock "0:00:37"]

1. d4 {[%clk 0:03:00]}  Nf6 {[%clk 0:02:57]} 2. Bf4 {[%clk 0:03:01]}  c5 {[%clk 0:02:56]} 3. e3 {[%clk 0:03:01]}  cxd4 {[%clk 0:02:56]} 4. exd4 {[%clk 0:03:01]}  e6 {[%clk 0:02:56]} 5. c3 {[%clk 0:03:01]}  b6 {[%clk 0:02:56]} 6. Nd2 {[%clk 0:03:02]}  Bb7 {[%clk 0:02:57]} 7. Ngf3 {[%clk 0:03:02]}  d6 {[%clk 0:02:57]} 8. Bd3 {[%clk 0:03:03]}  Be7 {[%clk 0:02:58]} 9. O-O {[%clk 0:03:03]}  O-O {[%clk 0:02:59]} 10. a4 {[%clk 0:03:03]}  a6 {[%clk 0:02:58]} 11. h3 {[%clk 0:03:03]}  Nbd7 {[%clk 0:02:59]} 12. Qe2 {[%clk 0:03:04]}  Re8 {[%clk 0:02:59]} 13. Rfe1 {[%clk 0:03:03]}  Qc7 {[%clk 0:02:58]} 14. Bh2 {[%clk 0:03:04]}  Nf8 {[%clk 0:02:58]} 15. Ng5 {[%clk 0:03:03]}  Ng6 {[%clk 0:02:57]} 16. Bc4 {[%clk 0:02:57]}  Nf8 {[%clk 0:02:49]} 17. Ndf3 {[%clk 0:02:46]}  Nd5 {[%clk 0:02:29]} 18. Bd3 {[%clk 0:02:20]}  Bf6 {[%clk 0:02:23]} 19. Ne4 {[%clk 0:02:19]}  Be7 {[%clk 0:02:23]} 20. Nfd2 {[%clk 0:02:18]}  g6 {[%clk 0:02:22]} 21. Nc4 {[%clk 0:02:16]}  Rad8 {[%clk 0:02:21]} 22. Ne3 {[%clk 0:02:11]}  Nxe3 {[%clk 0:02:16]} 23. Qxe3 {[%clk 0:02:11]}  Nd7 {[%clk 0:02:10]} 24. Qh6 {[%clk 0:02:07]}  Nf6 {[%clk 0:02:08]} 25. Ng5 {[%clk 0:02:02]}  Bf8 {[%clk 0:02:08]} 26. Qh4 {[%clk 0:02:02]}  Bg7 {[%clk 0:02:08]} 27. Rad1 {[%clk 0:01:56]}  h6 {[%clk 0:02:05]} 28. Ne4 {[%clk 0:01:55]}  Nxe4 {[%clk 0:02:05]} 29. Bxe4 {[%clk 0:01:55]}  Bxe4 {[%clk 0:02:05]} 30. Qxe4 {[%clk 0:01:54]}  Qd7 {[%clk 0:02:04]} 31. Qc2 {[%clk 0:01:26]}  d5 {[%clk 0:01:57]} 32. Qb3 {[%clk 0:01:24]}  b5 {[%clk 0:01:55]} 33. axb5 {[%clk 0:01:23]}  Qxb5 {[%clk 0:01:53]} 34. Qc2 {[%clk 0:01:20]}  Re7 {[%clk 0:01:46]} 35. Ra1 {[%clk 0:01:19]}  Rb7 {[%clk 0:01:46]} 36. Ra2 {[%clk 0:01:19]}  a5 {[%clk 0:01:45]} 37. Rea1 {[%clk 0:01:16]}  a4 {[%clk 0:01:45]} 38. Bf4 {[%clk 0:01:14]}  Bf8 {[%clk 0:01:41]} 39. Qd2 {[%clk 0:01:06]}  Kh7 {[%clk 0:01:37]} 40. Be5 {[%clk 0:01:03]}  Ra8 {[%clk 0:01:29]} 41. Qf4 {[%clk 0:01:02]}  Bg7 {[%clk 0:01:28]} 42. Bd6 {[%clk 0:00:57]}  Qc4 {[%clk 0:01:19]} 43. Bb4 {[%clk 0:00:55]}  g5 {[%clk 0:01:12]} 44. Qe3 {[%clk 0:00:49]}  Rxb4 {[%clk 0:01:01]} 45. cxb4 {[%clk 0:00:49]}  Bxd4 {[%clk 0:00:59]} 46. Qf3 {[%clk 0:00:46]}  Kg7 {[%clk 0:00:56]} 47. Rxa4 {[%clk 0:00:42]}  Rxa4 {[%clk 0:00:47]} 48. Rxa4 {[%clk 0:00:43]}  Be5 {[%clk 0:00:47]} 49. g3 {[%clk 0:00:38]}  Qc1+ {[%clk 0:00:47]} 50. Kg2 {[%clk 0:00:38]}  Qxb2 {[%clk 0:00:48]} 51. Ra7 {[%clk 0:00:32]}  Bf6 {[%clk 0:00:46]} 52. Qg4 {[%clk 0:00:22]}  Qb1 {[%clk 0:00:37]} 53. Qxe6 {[%clk 0:00:19]} 1-0


[Site "https://www.chess.com"]